Cogmind - Beta 11.1 @@@ ROGUE MODE // 2022.05.28 @ 17:36:31 Player: RNGesus Result: Destroyed by S-10 Pest with Light Assault Rifle Performance ------------- Evolutions (0) 0 Regions Visited (2) 400 Robots Destroyed (28) 140 Value Destroyed (759) 759 Prototype IDs (0) 0 Alien Tech Used (0) 0 Bonus (0) 0 TOTAL SCORE: 1299 Bonus ------- None Cogmind --------- Core Integrity 0/250 Matter 228/300 Energy 154/160 System Corruption 0% Temperature Cool (33) Movement Treading (240) Ox1 Location -10/Mines Parts ------- > --- POWER (1) -------- Light Nuclear Core > --- PROPULSION (2) --- Light Treads Light Treads > --- UTILITY (2) ------ High-capacity Storage Unit Medium Armor Plating > --- WEAPON (2) ------- Shotgun Shotgun > --- INVENTORY (20) --- Light Deuterium Engine Light Nuclear Core Combat Airjet Improved Heat Sink Improved Heat Sink Medium Storage Unit Huge Storage Unit Medium Armor Plating Medium Armor Plating Medium Laser Spread Laser Spread Laser Spread Laser Shotgun Bore Cannon Grenade Launcher Plasma Cutter Peak State ------------ > --- POWER ------------ Light Nuclear Core > --- PROPULSION ------- Light Treads Light Treads > --- UTILITY ---------- High-capacity Storage Unit Medium Armor Plating > --- WEAPON ----------- Shotgun Shotgun > --- INVENTORY -------- Light Deuterium Engine Light Nuclear Core Light Treads Combat Airjet Improved Heat Sink Improved Heat Sink Medium Storage Unit Huge Storage Unit Medium Armor Plating Medium Armor Plating Medium Armor Plating Medium Laser Spread Laser Spread Laser Spread Laser Shotgun Bore Cannon Grenade Launcher Plasma Cutter [Rating: 16] Favorites ----------- Power Light Ion Engine Engine Light Ion Engine Power Core Light Nuclear Core Propulsion Light Treads Treads Light Treads Utility High-capacity Storage Unit Device Improved Heat Sink Storage High-capacity Storage Unit Protection Medium Armor Plating Weapon Shotgun Energy Gun Medium Laser Ballistic Gun Shotgun Build | -11 -10 -10 ------- Run | Scr Mat Min Slots Evolved . | . . . Power . | . . . Propulsion . | . . . Utility . | . . . Weapon . | . . . Parts Attached 22 | 6 12 4 Power 3 | 1 1 1 Engine 2 | 1 1 . Core 1 | . . 1 Reactor . | . . . Propulsion 5 | 2 2 1 Treads 5 | 2 2 1 Leg . | . . . Wheel . | . . . Hover . | . . . Flight . | . . . Utility 8 | 1 6 1 Device 1 | . 1 . Storage 5 | 1 4 . Processor . | . . . Hackware . | . . . Protection 2 | . 1 1 Artifact . | . . . Weapon 6 | 2 3 1 Energy Gun 2 | 1 1 . Energy Cannon . | . . . Ballistic Gun 4 | 1 2 1 Ballistic Cannon . | . . . Launcher . | . . . Special Weapon . | . . . Impact Weapon . | . . . Slashing Weapon . | . . . Piercing Weapon . | . . . Special Melee Weapon . | . . . Unidentified Prototypes . | . . . Parts Lost 5 | . 1 4 Power 1 | . . 1 Propulsion 1 | . . 1 Utility 1 | . . 1 Weapon 2 | . 1 1 Highest Loss Streak 2 | . 1 2 To Critical Strikes . | . . . Average Slot Usage (%) 97 | . 95 99 Engine 10 | . 14 6 Core 3 | . . 7 Treads 27 | . 28 27 Device 1 | . 3 . Storage 14 | . 14 14 Protection 9 | . 6 13 Energy Gun 7 | . 12 . Ballistic Gun 20 | . 15 27 Naked Turns . | . . . Heaviest Build 67 | 12 67 58 Greatest Support 40 | 40 40 40 Greatest Overweight (x) 3 | 3 1 1 Average Overweight (x) . | 1 . 1 Largest Inventory Capacity 20 | 8 20 20 Average Capacity 17 | 7 15 20 Most Carried 19 | 2 18 19 Average Carried 13 | 1 10 18 Final Capacity 20 | 8 20 20 Final Carried 17 | 2 16 17 Class Distribution -------------------- 100% | Mutant Dominant Class ---------------- Mutant | -10/Materials Mutant | -10/Mines Resources | -11 -10 -10 ----------- Run | Scr Mat Min Matter Collected 813 | 205 428 180 Remotely . | . . . Salvage Created 907 | . 686 221 Parts 55 | . 41 14 Haulers Intercepted 1 | . 1 . Recyclers Shooed 1 | . 1 . Parts Field Recycled . | . . . Retrieved Matter . | . . . Parts Self-Destructed . | . . . Prevented . | . . . Kills | -11 -10 -10 ------- Run | Scr Mat Min Combat Hostiles Destroyed 24 | . 18 6 Guns 23 | . 17 6 Classes Destroyed 5 | . 4 1 Worker 2 | . 1 1 Tunneler 1 | . . 1 Hauler 1 | . 1 . Swarmer 5 | . 3 2 Grunt 19 | . 15 4 Best Kill Streak 4 | . 4 3 Combat Bots Only 3 | . 3 3 Max Kills in Single Turn 2 | . 2 1 Gunslinging 1 | . 1 . Exploded . | . . . Melee . | . . . Uniques/NPCs Destroyed . | . . . Combat | -11 -10 -10 -------- Run | Scr Mat Min Damage Taken 1224 | . 854 370 Core 250 | . 219 31 Absorbed by Shields . | . . . Core Remaining (%) 100 | 100 . . Volleys Fired 94 | . 76 18 Largest 2 | . 2 2 Hottest 100 | . 100 46 Shots Fired 177 | . 141 36 Gun 177 | . 141 36 Cannon . | . . . Launcher . | . . . Special . | . . . Kinetic 115 | . 79 36 Thermal 62 | . 62 . Explosive . | . . . Electromagnetic . | . . . Robot Hit Streak 12 | . 12 8 Robot Miss Streak 6 | . 5 6 Penetration Max . | . . . Secondary Targets 2 | . 1 1 Max Gunslinging Chain 1 | . 1 1 Shots Hit Robots 127 | . 99 28 Core Hits 54 | . 39 15 Critical Kills . | . . . Critical Parts Destroyed 1 | . 1 . Critical Strikes 6 | . 6 . Burn 5 | . 5 . Destroy 1 | . 1 . Melee Attacks . | . . . Impact . | . . . Slashing . | . . . Piercing . | . . . Sneak Attacks . | . . . Combat Hostiles . | . . . Follow-up Attacks . | . . . Damage Inflicted 1761 | . 1350 411 Guns 1761 | . 1350 411 Cannons . | . . . Explosions . | . . . Melee . | . . . Ramming . | . . . Kinetic 1249 | . 838 411 Thermal 512 | . 512 . Explosive . | . . . Electromagnetic . | . . . Impact . | . . . Slashing . | . . . Piercing . | . . . Highest Corruption . | . . . Average Corruption . | . . . Corruption Purged . | . . . Corruption Blocked . | . . . Overload Shots . | . . . Overflow Damage . | . . . Projectiles . | . . . Explosions . | . . . Melee . | . . . Knockbacks . | . . . Impact . | . . . Kinetic . | . . . Secondary . | . . . Self-Inflicted Damage . | . . . Shots . | . . . Rammed . | . . . Targets Rammed . | . . . Kicked . | . . . Crushed . | . . . Highest Temperature 529 | . 529 81 Average Temperature 141 | . 161 42 Received Heat Transfer 636 | . 486 150 Effects 14 | . 14 . Shutdowns 1 | . 1 . Energy Bleed 1 | . 1 . Interference 4 | . 4 . Matter Decay 1 | . 1 . Short Circuit 3 | . 3 . Damage (minor) 2 | . 2 . Damage (major) 2 | . 2 . Siege Activations . | . . . Robots Corrupted . | . . . Combat Hostiles . | . . . Parts Fried . | . . . Impact Corruptions . | . . . Robots Melted 1 | . 1 . Combat Hostiles 1 | . 1 . Parts Melted 4 | . 4 . Heat Transferred 1887 | . 1887 . Parts Sabotaged . | . . . Parts Stolen . | . . . Parts Stripped . | . . . Power Chain Reactions . | . . . Missiles Intercepted . | . . . Alert | -11 -10 -10 ------- Run | Scr Mat Min Peak Influence 237 | . 237 135 Initial 75 | . . 75 Average 69 | . 90 45 Maximum Alert Level 1 | . 1 . Low Security (%) 98 | 100 97 100 Level 1 1 | . 2 . Level 2 . | . . . Level 3 . | . . . Level 4 . | . . . Level 5 . | . . . High Security . | . . . Max Security . | . . . Squads Dispatched 5 | . 5 . Investigation 4 | . 4 . Extermination . | . . . Reinforcement 1 | . 1 . Assault . | . . . Garrison . | . . . Intercept . | . . . Searches Triggered . | . . . Construction Impeded . | . . . Haulers Reinforced . | . . . Active Scanning Responses . | . . . Cargo Convoy Interrupts . | . . . Stealth | -11 -10 -10 --------- Run | Scr Mat Min Distress Signals 4 | . 4 . Communications Jammed . | . . . Distress Signals . | . . . Times Spotted 42 | . 32 10 Peak Tracking Total 14 | . 5 14 Tactical Retreats . | . . . Traps | -11 -10 -10 ------- Run | Scr Mat Min Traps Triggered 2 | . 2 . Indirectly . | . . . Trap Hack Attempts . | . . . Triggered . | . . . Disarmed . | . . . Reprogrammed . | . . . Reused . | . . . Traps Extracted . | . . . Installed . | . . . Triggered . | . . . Machines | -11 -10 -10 ---------- Run | Scr Mat Min Machines Disabled . | . . . Max in Single Turn . | . . . Machines Sabotaged . | . . . Garrisons Compromised . | . . . Overloaded Fab Kills . | . . . Hacking | -11 -10 -10 --------- Run | Scr Mat Min Machines Accessed 4 | . 4 . Terminals 2 | . 2 . Fabricators . | . . . Repair Stations . | . . . Recycling Units 2 | . 2 . Scanalyzers . | . . . Garrison Access . | . . . Total Hacks 7 | . 7 . Successful 3 | . 3 . Failed 4 | . 4 . Catastrophic . | . . . Database Lockouts . | . . . Manual 7 | . 7 . Terminals 5 | . 5 . Fabricators . | . . . Repair Stations . | . . . Recycling Units 2 | . 2 . Scanalyzers . | . . . Garrison Access . | . . . Terminal Hacks 1 | . 1 . Part Schematic 1 | . 1 . Fabricator Hacks . | . . . Repair Station Hacks . | . . . Recycling Unit Hacks . | . . . Scanalyzer . | . . . Garrison Access Hacks . | . . . Unauthorized Hacks 2 | . 2 . Terminals . | . . . Fabricators . | . . . Repair Stations . | . . . Recycling Units 2 | . 2 . Tunnel 2 | . 2 . Scanalyzers . | . . . Garrison Access . | . . . Data Cores Recovered . | . . . Used . | . . . Hacking Detections 2 | . 2 . Full Trace Events . | . . . Feedback Events . | . . . Feedback Blocked . | . . . Robot Schematics Acquired . | . . . Robots Built . | . . . Authchips . | . . . Time . | . . . Total Robot Build Rating . | . . . Part Schematics Acquired 1 | . 1 . Parts Built . | . . . Authchips . | . . . Time . | . . . Total Part Build Rating . | . . . Parts Repaired . | . . . Time . | . . . Parts Recycled . | . . . Recycled Matter . | . . . Retrieved Matter . | . . . Retrieved Components . | . . . Parts Scanalyzed . | . . . Part Schematics Acquired . | . . . Parts Damaged . | . . . Bothacking | -11 -10 -10 ------------ Run | Scr Mat Min Used RIF Installer . | . . . Robots Hacked . | . . . Non-combat . | . . . Combat . | . . . Robot Hacks Applied . | . . . Relay Couplers Released . | . . . Fabnet Peak Effective % . | . . . Robots Rewired . | . . . Allies Hacked . | . . . Hacks Repelled . | . . . Allies | -11 -10 -10 -------- Run | Scr Mat Min Total Allies . | . . . Largest Group . | . . . Highest-Rated Group . | . . . Highest-Rated Ally . | . . . Total Orders . | . . . Ally Attacks . | . . . Total Damage . | . . . Kills . | . . . Allies Corrupted . | . . . Allies Melted . | . . . Intel | -11 -10 -10 ------- Run | Scr Mat Min Robot Analysis Total . | . . . Derelict Logs Recovered 1 | . . 1 Drone Launches . | . . . Drone Recoveries . | . . . Exploration | -11 -10 -10 ------------- Run | Scr Mat Min Turns Passed 2775 | 69 1525 1181 Spaces Moved 1167 | 36 667 464 Core 21 | 21 . . Treads 1146 | 15 667 464 Legs . | . . . Wheels . | . . . Hover . | . . . Flight . | . . . Fastest Speed 50 | 50 160 240 Average Speed 206 | 162 185 240 Slowest Speed 240 | 200 240 240 Overloaded Moves . | . . . Propulsion Burnouts . | . . . Robots Hopped . | . . . Cave-ins Triggered . | . . . Exploration Rate (%) 58 | 4 92 80 Regions Visited 2 Branch Regions 1 Pre-discovered Areas 3 | . 2 1 Known Exits Taken . | . . . Unknown Exits Taken 2 | 1 1 . Scrap Searched 3 | . . 3 Spaces Dug . | . . . Terrain Destroyed . | . . . Melee . | . . . Projectile . | . . . AOE . | . . . Terrain Rammed . | . . . Walls Destroyed . | . . . Machines Disabled . | . . . Actions | -11 -10 -10 --------- Run | Scr Mat Min Total 1353 | 44 814 495 Wait 41 | 1 36 4 Move 1165 | 35 666 464 Hop . | . . . Pick Up 22 | 2 15 5 Fast Attach 10 | 6 4 . Attach 6 | . 2 4 Detach 4 | . 4 . Swap 6 | . 6 . Drop 5 | . 5 . Fire 94 | . 76 18 Melee . | . . . Ram . | . . . Kick . | . . . Crush . | . . . Escape Stasis . | . . . Rewire . | . . . Trap . | . . . Miscellaneous . | . . . Route ------- -11/Scrapyard -10/Materials (discovered 5 exits: [*Mat x3] / [*Min x2]) -10/Mines (discovered 2 exits: [*Mat x2]) History --------- Turn | Location | Event 50 | -11/Scrapyard | Discovered new exit (range 12) 70 | -11/Scrapyard | Entered Materials 171 | -10/Materials | Discovered new exit (range 15) 216 | -10/Materials | Discovered new exit (range 7) 248 | -10/Materials | Discovered new exit (range 16) 307 | -10/Materials | Build established: Mutant 453 | -10/Materials | Core integrity fell below 50% 738 | -10/Materials | Discovered new exit (range 16) 978 | -10/Materials | Core integrity fell below 20% 1353 | -10/Materials | Discovered new exit (range 16) 1595 | -10/Materials | Entered Mines 1657 | -10/Mines | Deemed a non-threat by the Exiles lab entrance 1840 | -10/Mines | A weapon hastily lodged in a ceiling crevice suddenly fell to the ground 2157 | -10/Mines | Assembled infested the area 2183 | -10/Mines | Met 8R-AWN 2205 | -10/Mines | Discovered new exit (range 9) 2247 | -10/Mines | Discovered new exit (range 12) 2776 | -10/Mines | Destroyed by S-10 Pest with Light Assault Rifle Last Messages --------------- 02361_ K-01 Serf collects debris. 02361_ U-05 Engineer builds a Wall. 02367_ U-05 Engineer lays Concrete. 02389_ U-05 Engineer builds a Wall. 02392_ U-05 Engineer lays Concrete. 02394_ U-05 Engineer builds a Wall. 02399_ U-05 Engineer lays Concrete. 02581_ Searching scrap... 02581_ Found Assault Rifle. 02581_ Found 38 Matter. 02719_ K-01 Serf collects debris. 02738_ S-10 Pest destroyed. 02747_ G-34 Mercenary destroyed. 02748_ K-01 Serf collects debris. 02760_ Lgt. Treads destroyed. 02762_ K-01 Serf collects debris. 02764_ Med. Armor Plating destroyed. 02766_ K-01 Serf collects debris. 02768_ G-47 Trooper destroyed. 02769_ Acquired 34 matter. Map ----- +----------------------------------------------------+ | | | | | | | | | | | | | | | ??????????????????????????????????? | | ??????????????????????????????????? | | ??????????????????????????????????? | | ??????????????????????????????????? | | ??####????????????????????????????? | | ??# #???????????????????????????? | | ?? ###????????????????????????? | | ??? ##???????????????????????? | | ???? ##??????????????????????? | | ???? ##?????????????????????? | | ????? ###???????????????????? | | ?????# ##??????????????????? | | ????## t #??????????????????? | | ????# ???????????????????? | | ????# ????????????????????? | | ????# #??????????????????#### | | ?????# #########???????????# | | ?????# %s% ""???????# ## | | ?????# @#######?????????????# #? | | ?????# #???????????????????# #? | | ??##### ##???????????????????# ## | | ?## ### #??????????????????## | | ?# #?## #??????????????????# | | ?# ##?# #??????????????????# | | ?# ### #??????????????????## | | ?# ## #################??## | | ?# ## =!=%!#?## | | ?# ############### ### | | ??# ### #??????????## ## | | ??#####?# #?????????## | | ????????# #????????## | | ????????# [#????????# ## | | ????????#!%##???????# ##### # | | ???????##] !##?????## ##??## # | | ??????## #?????# ##?## # | | ?????## #?????# ### # | | ????## #?????# ## | | ????# ##?????+ ###? | | ????# ##??????+ ##??? | | ????# ##???????# #???? | | ????# #????????# ## ##??? | | ????## ######??## #### ##?? | | ?????## #??# ##?# ### | +----------------------------------------------------+ Best States ------------- Heat Dissipation 39 Energy Generation 14 Energy Capacity 160 Matter Stores 300 Matter Capacity 300 Sight Range 16 Terrain Scan Density 10 Armor Coverage 225 Evasion (%) 40 Recoil Reduction 2 Item Schematics ----------------- Huge Storage Unit | -10/Materials | Hacked Robot Schematics ------------------ None Fabricated ------------ Nothing Alien Tech Used ----------------- None Achievements -------------- None Challenges ------------ None Game ------ Seed MicroShrapnelTerrabomb Manual? 0 Play Time 00:10:07 Cumulative 400.0 hours Start 2022.05.28 @ 17:28:14 End 2022.05.28 @ 17:36:31 Sessions 1 Manual Loads 0 Difficulty Rogue Special Mode None Game No. 539 Rogue 539 Adventurer 0 Explorer 0 Win Type - Total 9 Types 6/1/1/1/0/0/0/0/0 Lore% 88 Gallery% 90 Achievement% 74 Wizard Run 0 Options --------- ASCII 0 Keyboard 1 Movement Numpad Keybinds 0 Fullscreen 2 Font 24/Smallcaps Map View 76x50 Tactical HUD 1 Map Filters NONE Filters NONE Steam 1 RUN: bfc5440c-e50d-470a-94c1-7f4eaddad397